[Event "*** SCC Grand Prix: Titled Tuesday Blitz"]
[Site "Chess.com"]
[Date "2020.08.11"]
[Round "8"]
[White "Alex_Belezky"]
[Black "RusPakhom"]
[Result "1-0"]
[WhiteElo "2476"]
[BlackElo "2296"]
[TimeControl "180+1"]
[EndTime "11:36:01 PDT"]
[Termination "Alex_Belezky won by resignation"]

1. Nf3 {[%clk 0:02:57]} 1... Nf6 {[%clk 0:02:59.4]} 2. g3 {[%clk 0:02:57.3]}
2... c6 {[%clk 0:02:59]} 3. Bg2 {[%clk 0:02:57.8]} 3... d5 {[%clk 0:02:59.3]} 4.
d3 {[%clk 0:02:58.3]} 4... Bg4 {[%clk 0:02:59.1]} 5. O-O {[%clk 0:02:58.5]} 5...
Nbd7 {[%clk 0:02:58.5]} 6. c4 {[%clk 0:02:58.6]} 6... e6 {[%clk 0:02:58.3]} 7.
Be3 {[%clk 0:02:58]} 7... Bc5 {[%clk 0:02:54.2]} 8. Bxc5 {[%clk 0:02:56.3]} 8...
Nxc5 {[%clk 0:02:53.9]} 9. Qc2 {[%clk 0:02:54.3]} 9... Bxf3 {[%clk 0:02:48.1]}
10. Bxf3 {[%clk 0:02:53.5]} 10... Ncd7 {[%clk 0:02:47.1]} 11. Nd2 {[%clk
0:02:50.3]} 11... O-O {[%clk 0:02:46.7]} 12. Bg2 {[%clk 0:02:45.8]} 12... Qb6
{[%clk 0:02:45.2]} 13. Rab1 {[%clk 0:02:43.8]} 13... a5 {[%clk 0:02:44.5]} 14.
b3 {[%clk 0:02:43.2]} 14... Rad8 {[%clk 0:02:34.6]} 15. Nf3 {[%clk 0:02:41.7]}
15... Rfe8 {[%clk 0:02:33.4]} 16. Nd2 {[%clk 0:02:41.6]} 16... Nc5 {[%clk
0:02:30.6]} 17. a3 {[%clk 0:02:39.4]} 17... Ncd7 {[%clk 0:02:21.4]} 18. Nf3
{[%clk 0:02:29.4]} 18... Ra8 {[%clk 0:02:16.4]} 19. Qc3 {[%clk 0:02:26.8]} 19...
h6 {[%clk 0:02:08.4]} 20. Qd4 {[%clk 0:02:20.3]} 20... Qxd4 {[%clk 0:02:06.2]}
21. Nxd4 {[%clk 0:02:20.1]} 21... Nc5 {[%clk 0:01:37]} 22. Nc2 {[%clk 0:02:16]}
22... Red8 {[%clk 0:01:35]} 23. Rfe1 {[%clk 0:02:08.4]} 23... Kf8 {[%clk
0:01:34.3]} 24. Bf3 {[%clk 0:02:08.3]} 24... g6 {[%clk 0:01:31.8]} 25. h4 {[%clk
0:02:07.9]} 25... h5 {[%clk 0:01:31.9]} 26. Kg2 {[%clk 0:02:07.7]} 26... Ke7
{[%clk 0:01:31.1]} 27. Red1 {[%clk 0:02:06.8]} 27... Ra7 {[%clk 0:01:30.9]} 28.
Rdc1 {[%clk 0:02:06.8]} 28... Rda8 {[%clk 0:01:30.4]} 29. Ne3 {[%clk 0:02:00.8]}
29... Ncd7 {[%clk 0:01:26.6]} 30. Nc2 {[%clk 0:01:58.5]} 30... Ne5 {[%clk
0:01:26]} 31. Ne3 {[%clk 0:01:57.5]} 31... Nfd7 {[%clk 0:01:23.1]} 32. Rc2
{[%clk 0:01:52.4]} 32... Nf6 {[%clk 0:01:06.4]} 33. Rcc1 {[%clk 0:01:51.2]}
33... Nfd7 {[%clk 0:01:06.2]} 34. cxd5 {[%clk 0:01:43.8]} 34... exd5 {[%clk
0:01:05.8]} 35. d4 {[%clk 0:01:42.2]} 35... Nxf3 {[%clk 0:01:02.7]} 36. Kxf3
{[%clk 0:01:42.7]} 36... Kd6 {[%clk 0:01:01.8]} 37. Ng2 {[%clk 0:01:41.6]} 37...
Re8 {[%clk 0:00:57.9]} 38. Nf4 {[%clk 0:01:40.7]} 38... Nf8 {[%clk 0:00:57.3]}
39. e3 {[%clk 0:01:37.6]} 39... Ne6 {[%clk 0:00:56.3]} 40. Nd3 {[%clk 0:01:34]}
40... f6 {[%clk 0:00:50.8]} 41. Nf4 {[%clk 0:01:28.9]} 41... Nxf4 {[%clk
0:00:43]} 42. gxf4 {[%clk 0:01:28.8]} 42... f5 {[%clk 0:00:38.7]} 43. Rg1 {[%clk
0:01:28.2]} 43... Re6 {[%clk 0:00:36.5]} 44. Rg5 {[%clk 0:01:26.8]} 44... Ke7
{[%clk 0:00:35.6]} 45. Rc1 {[%clk 0:01:25.4]} 45... Kf7 {[%clk 0:00:34.4]} 46.
Rgg1 {[%clk 0:01:23.4]} 46... Re7 {[%clk 0:00:34.3]} 47. Rc5 {[%clk 0:01:23]}
47... Re6 {[%clk 0:00:33.8]} 48. Rb1 {[%clk 0:01:22.5]} 48... Re7 {[%clk
0:00:33]} 49. b4 {[%clk 0:01:20.5]} 49... axb4 {[%clk 0:00:25.4]} 50. axb4
{[%clk 0:01:20.3]} 50... Ra6 {[%clk 0:00:21.4]} 51. b5 {[%clk 0:01:13.4]} 51...
Rb6 {[%clk 0:00:21.2]} 52. Ra1 {[%clk 0:01:08.7]} 52... Rxb5 {[%clk 0:00:17.7]}
53. Rxb5 {[%clk 0:01:08.8]} 53... cxb5 {[%clk 0:00:18]} 54. Rb1 {[%clk
0:01:09.4]} 54... Ke6 {[%clk 0:00:18]} 55. Rxb5 {[%clk 0:01:09.1]} 55... Kd6
{[%clk 0:00:12.1]} 56. Rb6+ {[%clk 0:01:08.6]} 56... Kc7 {[%clk 0:00:12.4]} 57.
Rxg6 {[%clk 0:01:08.5]} 57... b5 {[%clk 0:00:12.8]} 58. Ke2 {[%clk 0:01:08.4]}
58... Re8 {[%clk 0:00:07]} 59. Kd3 {[%clk 0:01:07.1]} 59... Ra8 {[%clk
0:00:05.1]} 60. Kc3 {[%clk 0:01:05.4]} 60... Ra2 {[%clk 0:00:04.7]} 61. Kb4
{[%clk 0:01:02.2]} 61... Rxf2 {[%clk 0:00:04.5]} 62. Kxb5 {[%clk 0:01:02.1]}
62... Rh2 {[%clk 0:00:03]} 63. Kc5 {[%clk 0:01:00.8]} 63... Rxh4 {[%clk
0:00:03.4]} 64. Rg7+ {[%clk 0:01:00.4]} 64... Kd8 {[%clk 0:00:02.8]} 65. Kxd5
{[%clk 0:00:55.8]} 65... Rh3 {[%clk 0:00:02.8]} 66. Ke5 {[%clk 0:00:51.4]} 66...
Rxe3+ {[%clk 0:00:02.7]} 67. Kxf5 {[%clk 0:00:51.6]} 67... h4 {[%clk 0:00:03.1]}
68. Rh7 {[%clk 0:00:49.8]} 68... h3 {[%clk 0:00:03.4]} 69. d5 {[%clk 0:00:48.3]}
69... Rd3 {[%clk 0:00:03.6]} 70. Ke6 {[%clk 0:00:48.4]} 70... Re3+ {[%clk
0:00:03.2]} 71. Kd6 {[%clk 0:00:48.1]} 71... Ke8 {[%clk 0:00:03.6]} 72. f5
{[%clk 0:00:45.8]} 72... Kf8 {[%clk 0:00:03.7]} 73. f6 {[%clk 0:00:44.9]} 73...
Kg8 {[%clk 0:00:03.8]} 74. Rh4 {[%clk 0:00:43.2]} 74... Kf7 {[%clk 0:00:03.8]}
75. Rh6 {[%clk 0:00:43.2]} 75... h2 {[%clk 0:00:02.9]} 76. Rxh2 {[%clk
0:00:41.5]} 76... Kxf6 {[%clk 0:00:03.2]} 77. Rf2+ {[%clk 0:00:41.4]} 77... Kg7
{[%clk 0:00:03]} 78. Kd7 {[%clk 0:00:41.3]} 78... Rd3 {[%clk 0:00:03.1]} 79. d6
{[%clk 0:00:41.3]} 79... Kg8 {[%clk 0:00:03.2]} 80. Ke7 {[%clk 0:00:40.9]} 80...
Re3+ {[%clk 0:00:03.3]} 81. Kd8 {[%clk 0:00:41]} 81... Rc3 {[%clk 0:00:03.9]}
82. d7 {[%clk 0:00:39.6]} 82... Rc4 {[%clk 0:00:03.6]} 83. Ke7 {[%clk
0:00:37.7]} 83... Re4+ {[%clk 0:00:03.6]} 84. Kd6 {[%clk 0:00:37.5]} 84... Rd4+
{[%clk 0:00:03.9]} 85. Ke6 {[%clk 0:00:37.6]} 85... Rd1 {[%clk 0:00:03.7]} 86.
Rf5 {[%clk 0:00:36.3]} 1-0

[Event "*** SCC Grand Prix: Titled Tuesday Blitz"]
[Site "Chess.com"]
[Date "2020.08.11"]
[Round "8"]
[White "chenxiaoyuer"]
[Black "Kotofeyca"]
[Result "1/2-1/2"]
[WhiteElo "2443"]
[BlackElo "2297"]
[TimeControl "180+1"]
[EndTime "11:36:05 PDT"]
[Termination "Game drawn by repetition"]

1. e4 {[%clk 0:03:00.9]} 1... c5 {[%clk 0:02:59.3]} 2. Nf3 {[%clk 0:03:00.8]}
2... d6 {[%clk 0:02:59.8]} 3. d4 {[%clk 0:03:00.8]} 3... cxd4 {[%clk 0:03:00.7]}
4. Nxd4 {[%clk 0:03:01.7]} 4... Nf6 {[%clk 0:03:01.4]} 5. Nc3 {[%clk 0:03:02.3]}
5... a6 {[%clk 0:03:02]} 6. Be2 {[%clk 0:03:02.2]} 6... e5 {[%clk 0:03:01.9]} 7.
Nb3 {[%clk 0:03:01.6]} 7... Be7 {[%clk 0:03:01.3]} 8. O-O {[%clk 0:03:01.2]}
8... O-O {[%clk 0:03:01.3]} 9. Kh1 {[%clk 0:03:00.9]} 9... b5 {[%clk 0:03:00.7]}
10. a4 {[%clk 0:03:00.7]} 10... b4 {[%clk 0:02:53.8]} 11. Nd5 {[%clk 0:02:57.3]}
11... Nbd7 {[%clk 0:02:42.5]} 12. Nxb4 {[%clk 0:02:08.2]} 12... Nxe4 {[%clk
0:02:36.7]} 13. Nc6 {[%clk 0:01:41.7]} 13... Qe8 {[%clk 0:02:26.9]} 14. Qd5
{[%clk 0:01:38.9]} 14... Ndf6 {[%clk 0:01:48.5]} 15. Nxe7+ {[%clk 0:01:31.3]}
15... Qxe7 {[%clk 0:01:49.4]} 16. Qxa8 {[%clk 0:01:29.5]} 16... Bb7 {[%clk
0:01:49.5]} 17. Qa7 {[%clk 0:01:29]} 17... Ng3+ {[%clk 0:01:37.1]} 18. hxg3
{[%clk 0:00:55.8]} 18... Bxg2+ {[%clk 0:01:36.6]} 19. Kxg2 {[%clk 0:00:56.7]}
19... Qxa7 {[%clk 0:01:36.7]} 20. Be3 {[%clk 0:00:52.9]} 20... Qa8+ {[%clk
0:01:32.2]} 21. Bf3 {[%clk 0:00:32.6]} 21... e4 {[%clk 0:01:32]} 22. Be2 {[%clk
0:00:31.9]} 22... Qc6 {[%clk 0:01:29.2]} 23. Nd4 {[%clk 0:00:30.2]} 23... Qb7
{[%clk 0:01:28.4]} 24. b3 {[%clk 0:00:27.8]} 24... Nd5 {[%clk 0:01:28.4]} 25.
Bc4 {[%clk 0:00:24.3]} 25... Nc3 {[%clk 0:01:23.3]} 26. Kg1 {[%clk 0:00:14.5]}
26... d5 {[%clk 0:01:23.3]} 27. Be2 {[%clk 0:00:14.1]} 27... f5 {[%clk
0:01:18.5]} 28. Rfe1 {[%clk 0:00:13.8]} 28... h6 {[%clk 0:01:14.3]} 29. Bd2
{[%clk 0:00:13.3]} 29... Nxe2+ {[%clk 0:01:11.3]} 30. Rxe2 {[%clk 0:00:14.2]}
30... g5 {[%clk 0:01:09.4]} 31. Bc1 {[%clk 0:00:11.2]} 31... Qd7 {[%clk
0:00:53.2]} 32. Bb2 {[%clk 0:00:11]} 32... f4 {[%clk 0:00:53.2]} 33. Rae1 {[%clk
0:00:07.1]} 33... f3 {[%clk 0:00:53.1]} 34. Kh2 {[%clk 0:00:02.8]} 34... fxe2
{[%clk 0:00:52.3]} 35. Rxe2 {[%clk 0:00:03.7]} 35... Qg4 {[%clk 0:00:51.7]} 36.
Rd2 {[%clk 0:00:04.6]} 36... h5 {[%clk 0:00:49.1]} 37. Nc6 {[%clk 0:00:04]}
37... Rf7 {[%clk 0:00:43.5]} 38. Ne5 {[%clk 0:00:03.7]} 38... Qf5 {[%clk
0:00:40.7]} 39. Nxf7 {[%clk 0:00:03.3]} 39... Kxf7 {[%clk 0:00:41.3]} 40. Bd4
{[%clk 0:00:03.6]} 40... Ke6 {[%clk 0:00:40.1]} 41. Be3 {[%clk 0:00:03.9]} 41...
h4 {[%clk 0:00:36.9]} 42. Rd4 {[%clk 0:00:03.9]} 42... h3 {[%clk 0:00:33.8]} 43.
b4 {[%clk 0:00:02.2]} 43... g4 {[%clk 0:00:33.6]} 44. Bf4 {[%clk 0:00:02.3]}
44... Qf6 {[%clk 0:00:30.9]} 45. c3 {[%clk 0:00:02.1]} 45... Qe7 {[%clk
0:00:28.5]} 46. c4 {[%clk 0:00:02]} 46... Qd7 {[%clk 0:00:21.5]} 47. cxd5+
{[%clk 0:00:02.1]} 47... Kf5 {[%clk 0:00:21.5]} 48. d6 {[%clk 0:00:02.3]} 48...
Ke6 {[%clk 0:00:18.9]} 49. b5 {[%clk 0:00:02.5]} 49... axb5 {[%clk 0:00:18.1]}
50. axb5 {[%clk 0:00:03.4]} 50... Kf7 {[%clk 0:00:18.4]} 51. b6 {[%clk
0:00:03.7]} 51... Ke8 {[%clk 0:00:17.6]} 52. b7 {[%clk 0:00:03.8]} 52... Qxb7
{[%clk 0:00:17.9]} 53. d7+ {[%clk 0:00:04.3]} 53... Qxd7 {[%clk 0:00:17.3]} 54.
Rxd7 {[%clk 0:00:04.9]} 54... Kxd7 {[%clk 0:00:18.2]} 55. Be3 {[%clk 0:00:03.5]}
55... Ke6 {[%clk 0:00:19.1]} 56. Kg1 {[%clk 0:00:03.4]} 56... Kd5 {[%clk
0:00:20]} 57. Kf1 {[%clk 0:00:03.5]} 57... Kc4 {[%clk 0:00:20.5]} 58. Bg5 {[%clk
0:00:03.4]} 58... Kd3 {[%clk 0:00:20.6]} 59. Be3 {[%clk 0:00:03.3]} 59... Kc2
{[%clk 0:00:20.7]} 60. Bb6 {[%clk 0:00:03.3]} 60... Kd1 {[%clk 0:00:20.7]} 61.
Bc7 {[%clk 0:00:02.3]} 61... Kd2 {[%clk 0:00:20.5]} 62. Bf4+ {[%clk 0:00:02.1]}
62... Kd1 {[%clk 0:00:20.8]} 63. Be3 {[%clk 0:00:03]} 63... Kc2 {[%clk
0:00:20.8]} 64. Kg1 {[%clk 0:00:03.9]} 64... Kd1 {[%clk 0:00:20.8]} 65. Kh2
{[%clk 0:00:04.8]} 65... Ke2 {[%clk 0:00:21]} 66. Ba7 {[%clk 0:00:04.6]} 66...
Kf1 {[%clk 0:00:20.7]} 67. Be3 {[%clk 0:00:04.1]} 67... Ke2 {[%clk 0:00:20]} 68.
Ba7 {[%clk 0:00:04.2]} 68... Kf3 {[%clk 0:00:20.2]} 69. Kg1 {[%clk 0:00:04]}
69... Ke2 {[%clk 0:00:20.1]} 70. Be3 {[%clk 0:00:02.8]} 70... Ke1 {[%clk
0:00:20.3]} 71. Bg5 {[%clk 0:00:02.3]} 71... Ke2 {[%clk 0:00:18.4]} 72. Be3
{[%clk 0:00:02]} 72... Ke1 {[%clk 0:00:18.7]} 73. Ba7 {[%clk 0:00:02.2]} 73...
Kd2 {[%clk 0:00:17.7]} 74. Be3+ {[%clk 0:00:03.1]} 74... Ke2 {[%clk 0:00:17.8]}
75. Ba7 {[%clk 0:00:02.7]} 75... Ke1 {[%clk 0:00:17.6]} 76. Be3 {[%clk
0:00:02.5]} 76... Kd1 {[%clk 0:00:17.1]} 77. Ba7 {[%clk 0:00:01.5]} 77... Kd2
{[%clk 0:00:16.2]} 78. Be3+ {[%clk 0:00:02.4]} 78... Ke2 {[%clk 0:00:16.2]} 79.
Ba7 {[%clk 0:00:03.3]} 79... Ke1 {[%clk 0:00:15.5]} 80. Be3 {[%clk 0:00:04.2]}
80... Ke2 {[%clk 0:00:15.6]} 1/2-1/2

[Event "*** SCC Grand Prix: Titled Tuesday Blitz"]
[Site "Chess.com"]
[Date "2020.08.11"]
[Round "8"]
[White "Twitch_ElhamBlitz05"]
[Black "olksuna"]
[Result "1/2-1/2"]
[WhiteElo "2757"]
[BlackElo "2645"]
[TimeControl "180+1"]
[EndTime "11:36:10 PDT"]
[Termination "Game drawn by agreement"]

1. e4 {[%clk 0:03:00.9]} 1... d6 {[%clk 0:02:59]} 2. d4 {[%clk 0:03:00.7]} 2...
Nf6 {[%clk 0:02:59.5]} 3. Nc3 {[%clk 0:02:59.9]} 3... c6 {[%clk 0:03:00.1]} 4.
Nf3 {[%clk 0:02:59.6]} 4... Bg4 {[%clk 0:02:59.7]} 5. Be2 {[%clk 0:02:59.5]}
5... e6 {[%clk 0:02:58]} 6. Be3 {[%clk 0:02:59.5]} 6... d5 {[%clk 0:02:58.1]} 7.
Bd3 {[%clk 0:02:54.8]} 7... Bb4 {[%clk 0:02:56.2]} 8. exd5 {[%clk 0:02:48.9]}
8... cxd5 {[%clk 0:02:47.4]} 9. O-O {[%clk 0:02:46.6]} 9... O-O {[%clk
0:02:46.6]} 10. Nb1 {[%clk 0:02:45.4]} 10... Nc6 {[%clk 0:02:44.6]} 11. c3
{[%clk 0:02:45.1]} 11... Bd6 {[%clk 0:02:42.8]} 12. Nbd2 {[%clk 0:02:45.5]}
12... h6 {[%clk 0:02:40.9]} 13. h3 {[%clk 0:02:45]} 13... Bf5 {[%clk 0:02:40.7]}
14. Qc2 {[%clk 0:02:41]} 14... Bxd3 {[%clk 0:02:39.3]} 15. Qxd3 {[%clk
0:02:41.9]} 15... Rb8 {[%clk 0:02:39.6]} 16. a4 {[%clk 0:02:36.1]} 16... a6
{[%clk 0:02:39.3]} 17. Rfe1 {[%clk 0:02:30]} 17... Re8 {[%clk 0:02:39.4]} 18. b4
{[%clk 0:02:23.7]} 18... Rc8 {[%clk 0:02:33.8]} 19. Nb3 {[%clk 0:02:22.3]} 19...
e5 {[%clk 0:02:25.1]} 20. dxe5 {[%clk 0:02:21.2]} 20... Nxe5 {[%clk 0:02:25.1]}
21. Nxe5 {[%clk 0:02:21.7]} 21... Bxe5 {[%clk 0:02:26]} 22. Bd4 {[%clk
0:02:08.3]} 22... Bxd4 {[%clk 0:02:23.2]} 23. Qxd4 {[%clk 0:02:07.5]} 23... Ne4
{[%clk 0:02:19.5]} 24. Nc5 {[%clk 0:01:46.4]} 24... Nxc5 {[%clk 0:02:04.8]} 25.
bxc5 {[%clk 0:01:47.3]} 25... Qd7 {[%clk 0:01:50.7]} 26. Rxe8+ {[%clk
0:01:26.1]} 26... Rxe8 {[%clk 0:01:49.5]} 27. c4 {[%clk 0:01:26.4]} 27... Rd8
{[%clk 0:01:37.3]} 28. Rd1 {[%clk 0:01:21.8]} 28... Qxa4 {[%clk 0:01:35.1]} 29.
cxd5 {[%clk 0:01:21.5]} 29... Qxd4 {[%clk 0:01:29.7]} 30. Rxd4 {[%clk
0:01:21.3]} 30... Rc8 {[%clk 0:01:29.9]} 31. Rc4 {[%clk 0:01:06.2]} 31... Kf8
{[%clk 0:01:22.1]} 32. f4 {[%clk 0:00:43.4]} 32... b6 {[%clk 0:01:17.5]} 33. c6
{[%clk 0:00:34.8]} 33... Ke7 {[%clk 0:01:16.1]} 34. c7 {[%clk 0:00:27.7]} 34...
Kd7 {[%clk 0:00:37.3]} 35. Rc6 {[%clk 0:00:26.3]} 35... b5 {[%clk 0:00:37.5]}
36. Rxa6 {[%clk 0:00:23.3]} 36... Rxc7 {[%clk 0:00:37.5]} 37. Rb6 {[%clk
0:00:22.9]} 37... Rc5 {[%clk 0:00:35.5]} 38. d6 {[%clk 0:00:22.1]} 38... Rf5
{[%clk 0:00:23.9]} 39. g3 {[%clk 0:00:20.6]} 39... g5 {[%clk 0:00:24]} 40. fxg5
{[%clk 0:00:16.4]} 40... hxg5 {[%clk 0:00:20.2]} 41. Kg2 {[%clk 0:00:16.4]}
41... Rc5 {[%clk 0:00:16]} 42. Kf3 {[%clk 0:00:16.1]} 42... f5 {[%clk
0:00:14.3]} 43. h4 {[%clk 0:00:11.4]} 43... Rc3+ {[%clk 0:00:13]} 44. Kg2 {[%clk
0:00:11.6]} 44... f4 {[%clk 0:00:09.9]} 45. gxf4 {[%clk 0:00:11.1]} 45... gxh4
{[%clk 0:00:10]} 46. Rxb5 {[%clk 0:00:06.9]} 46... Kxd6 {[%clk 0:00:09.1]} 47.
Re5 {[%clk 0:00:05.7]} 47... h3+ {[%clk 0:00:07.7]} 48. Kf2 {[%clk 0:00:05.2]}
48... h2 {[%clk 0:00:06.9]} 49. Rh5 {[%clk 0:00:05.1]} 49... Rc2+ {[%clk
0:00:05.6]} 50. Kf3 {[%clk 0:00:04.9]} 50... Ke6 {[%clk 0:00:05.6]} 51. Kg4
{[%clk 0:00:03.9]} 51... Rg2+ {[%clk 0:00:05]} 52. Kf3 {[%clk 0:00:04.6]} 52...
Rc2 {[%clk 0:00:05.7]} 53. Ke4 {[%clk 0:00:02.3]} 53... Re2+ {[%clk 0:00:05.3]}
54. Kd3 {[%clk 0:00:02.2]} 54... Ra2 {[%clk 0:00:06.2]} 55. Ke3 {[%clk
0:00:02.4]} 55... Kf6 {[%clk 0:00:06.7]} 56. Kf3 {[%clk 0:00:02.2]} 56... Kg6
{[%clk 0:00:07.1]} 57. Rh8 {[%clk 0:00:02.8]} 57... Kf5 {[%clk 0:00:07]} 58. Kg3
{[%clk 0:00:03.1]} 58... h1=Q {[%clk 0:00:04.7]} 59. Rxh1 {[%clk 0:00:02.5]}
59... Ra3+ {[%clk 0:00:05.6]} 60. Kh4 {[%clk 0:00:02.4]} 60... Kxf4 {[%clk
0:00:06.1]} 61. Rf1+ {[%clk 0:00:02.7]} 61... Rf3 {[%clk 0:00:06.5]} 62. Ra1
{[%clk 0:00:02.1]} 62... Rf2 {[%clk 0:00:06.6]} 63. Ra4+ {[%clk 0:00:02.5]}
63... Kf3 {[%clk 0:00:07.1]} 64. Kh3 {[%clk 0:00:02.6]} 64... Rf1 {[%clk
0:00:07.1]} 65. Ra3+ {[%clk 0:00:02.9]} 65... Ke2 {[%clk 0:00:07]} 66. Kg2
{[%clk 0:00:02.9]} 66... Rf2+ {[%clk 0:00:07.3]} 67. Kg3 {[%clk 0:00:03.4]}
67... Rf1 {[%clk 0:00:07.7]} 68. Ra2+ {[%clk 0:00:03.3]} 68... Ke3 {[%clk
0:00:07.7]} 69. Kg2 {[%clk 0:00:02.8]} 69... Rf5 {[%clk 0:00:07.1]} 70. Ra3+
{[%clk 0:00:03.2]} 70... Kf4 {[%clk 0:00:07.4]} 71. Rf3+ {[%clk 0:00:03.3]}
71... Ke4 {[%clk 0:00:07.3]} 72. Rb3 {[%clk 0:00:03.3]} 72... Rd5 {[%clk
0:00:06.9]} 73. Kf2 {[%clk 0:00:03.4]} 73... Re5 {[%clk 0:00:07.1]} 74. Ke2
{[%clk 0:00:03.3]} 74... Rd5 {[%clk 0:00:07.5]} 75. Re3+ {[%clk 0:00:02.8]}
75... Kd4 {[%clk 0:00:07.6]} 76. Rh3 {[%clk 0:00:03.7]} 76... Kc5 {[%clk
0:00:08.5]} 77. Ke3 {[%clk 0:00:03.7]} 77... Kd6 {[%clk 0:00:09.4]} 78. Ke4
{[%clk 0:00:04]} 78... Kc6 {[%clk 0:00:10]} 79. Rh6+ {[%clk 0:00:03.5]} 79...
Rd6 {[%clk 0:00:10.2]} 80. Rh8 {[%clk 0:00:04.4]} 80... Kc5 {[%clk 0:00:10.5]}
81. Rc8+ {[%clk 0:00:03.4]} 81... Rc6 {[%clk 0:00:11.4]} 82. Rh8 {[%clk
0:00:03.9]} 82... Re6+ {[%clk 0:00:11.6]} 83. Kf5 {[%clk 0:00:03.9]} 83... Rc6
{[%clk 0:00:12.5]} 1/2-1/2

[Event "*** SCC Grand Prix: Titled Tuesday Blitz"]
[Site "Chess.com"]
[Date "2020.08.11"]
[Round "8"]
[White "StephenDedalus83"]
[Black "The_Machine04"]
[Result "1/2-1/2"]
[WhiteElo "2765"]
[BlackElo "2278"]
[TimeControl "180+1"]
[EndTime "11:36:13 PDT"]
[Termination "Game drawn by repetition"]

1. e4 {[%clk 0:03:00.9]} 1... d6 {[%clk 0:02:58.8]} 2. d4 {[%clk 0:02:59.3]}
2... Nf6 {[%clk 0:02:55.8]} 3. Nc3 {[%clk 0:02:59.7]} 3... e5 {[%clk 0:02:54.8]}
4. Nf3 {[%clk 0:02:58.5]} 4... Nbd7 {[%clk 0:02:51.1]} 5. Bc4 {[%clk 0:02:58.2]}
5... Be7 {[%clk 0:02:49.7]} 6. O-O {[%clk 0:02:57.8]} 6... O-O {[%clk
0:02:48.4]} 7. Re1 {[%clk 0:02:57.4]} 7... c6 {[%clk 0:02:48.5]} 8. a4 {[%clk
0:02:57.8]} 8... b6 {[%clk 0:02:48.4]} 9. h3 {[%clk 0:02:52.9]} 9... a6 {[%clk
0:02:48.3]} 10. Ba2 {[%clk 0:02:50.1]} 10... Bb7 {[%clk 0:02:47.6]} 11. Nh4
{[%clk 0:02:49.2]} 11... g6 {[%clk 0:02:36.7]} 12. Bh6 {[%clk 0:02:46.9]} 12...
Re8 {[%clk 0:02:36.8]} 13. Nf3 {[%clk 0:02:46.7]} 13... Bf8 {[%clk 0:02:31.6]}
14. Qd2 {[%clk 0:02:43.4]} 14... Bxh6 {[%clk 0:02:16.6]} 15. Qxh6 {[%clk
0:02:42.1]} 15... Nf8 {[%clk 0:02:17.5]} 16. dxe5 {[%clk 0:02:34.9]} 16... dxe5
{[%clk 0:02:16.8]} 17. Ng5 {[%clk 0:02:35.4]} 17... Re7 {[%clk 0:02:15.5]} 18.
Rad1 {[%clk 0:02:29.3]} 18... Qc7 {[%clk 0:02:15.4]} 19. Rd3 {[%clk 0:02:28.9]}
19... Kh8 {[%clk 0:01:58.5]} 20. Qh4 {[%clk 0:02:16.1]} 20... Kg7 {[%clk
0:01:54.7]} 21. Rf3 {[%clk 0:02:15]} 21... h6 {[%clk 0:01:38.8]} 22. Ne6+ {[%clk
0:02:01.6]} 22... Rxe6 {[%clk 0:01:38.8]} 23. Bxe6 {[%clk 0:01:55.8]} 23... g5
{[%clk 0:01:39]} 24. Qg3 {[%clk 0:01:51.2]} 24... Nxe6 {[%clk 0:01:38.4]} 25.
Rd3 {[%clk 0:01:51.2]} 25... Nf4 {[%clk 0:01:32.8]} 26. Rdd1 {[%clk 0:01:50.9]}
26... Rd8 {[%clk 0:01:27.3]} 27. Rxd8 {[%clk 0:01:44.5]} 27... Qxd8 {[%clk
0:01:28.2]} 28. Qf3 {[%clk 0:01:44]} 28... Qe7 {[%clk 0:01:15.1]} 29. Rd1 {[%clk
0:01:42.6]} 29... Bc8 {[%clk 0:01:09.4]} 30. Qe3 {[%clk 0:01:40.3]} 30... Qe6
{[%clk 0:00:51.1]} 31. b3 {[%clk 0:01:28.2]} 31... b5 {[%clk 0:00:48.6]} 32.
axb5 {[%clk 0:01:27.3]} 32... axb5 {[%clk 0:00:49.5]} 33. Ne2 {[%clk 0:01:24.2]}
33... N6h5 {[%clk 0:00:32.7]} 34. Nc1 {[%clk 0:01:14.4]} 34... g4 {[%clk
0:00:28.2]} 35. h4 {[%clk 0:01:08.9]} 35... g3 {[%clk 0:00:28.2]} 36. fxg3
{[%clk 0:01:08.2]} 36... Qg4 {[%clk 0:00:27.8]} 37. Qf3 {[%clk 0:01:05.1]} 37...
Nxg3 {[%clk 0:00:23.4]} 38. Qxg4+ {[%clk 0:01:04.4]} 38... Bxg4 {[%clk
0:00:24.3]} 39. Rd6 {[%clk 0:01:04.3]} 39... Nxe4 {[%clk 0:00:21.9]} 40. Rxc6
{[%clk 0:01:03.9]} 40... Nf6 {[%clk 0:00:14.8]} 41. g3 {[%clk 0:01:01.3]} 41...
Ne2+ {[%clk 0:00:13.3]} 42. Nxe2 {[%clk 0:01:00.2]} 42... Bxe2 {[%clk
0:00:14.2]} 43. Kf2 {[%clk 0:01:00.2]} 43... Bg4 {[%clk 0:00:13.5]} 44. Ke3
{[%clk 0:00:59.8]} 44... Bd7 {[%clk 0:00:11.6]} 45. Rc5 {[%clk 0:00:58.3]} 45...
e4 {[%clk 0:00:11.6]} 46. Kf4 {[%clk 0:00:57.3]} 46... Kg6 {[%clk 0:00:10.7]}
47. c4 {[%clk 0:00:56.3]} 47... bxc4 {[%clk 0:00:10.7]} 48. bxc4 {[%clk
0:00:55.9]} 48... h5 {[%clk 0:00:09.1]} 49. Rg5+ {[%clk 0:00:54.5]} 49... Kh7
{[%clk 0:00:08.4]} 50. Ra5 {[%clk 0:00:53.7]} 50... Kg7 {[%clk 0:00:08.1]} 51.
Ra6 {[%clk 0:00:47.8]} 51... Be6 {[%clk 0:00:05.3]} 52. c5 {[%clk 0:00:46.6]}
52... Kf8 {[%clk 0:00:05.5]} 53. c6 {[%clk 0:00:45.8]} 53... Ke7 {[%clk
0:00:05.3]} 54. c7 {[%clk 0:00:38.7]} 54... Nd5+ {[%clk 0:00:05]} 55. Kxe4
{[%clk 0:00:38.5]} 55... Nxc7 {[%clk 0:00:05.9]} 56. Ra5 {[%clk 0:00:38.6]}
56... Bg4 {[%clk 0:00:04.6]} 57. Kf4 {[%clk 0:00:37.6]} 57... Ne6+ {[%clk
0:00:04.6]} 58. Ke5 {[%clk 0:00:37.3]} 58... f6+ {[%clk 0:00:03.9]} 59. Ke4
{[%clk 0:00:35.8]} 59... Kf7 {[%clk 0:00:04.4]} 60. Ra8 {[%clk 0:00:32.7]} 60...
Kg6 {[%clk 0:00:05]} 61. Rg8+ {[%clk 0:00:32.3]} 61... Ng7 {[%clk 0:00:05.7]}
62. Kf4 {[%clk 0:00:31.3]} 62... Kf7 {[%clk 0:00:05.7]} 63. Rh8 {[%clk
0:00:30.3]} 63... Kg6 {[%clk 0:00:05.3]} 64. Rg8 {[%clk 0:00:29.1]} 64... Kf7
{[%clk 0:00:04.6]} 65. Ra8 {[%clk 0:00:28.7]} 65... Ne6+ {[%clk 0:00:04.6]} 66.
Ke3 {[%clk 0:00:28.6]} 66... Ng7 {[%clk 0:00:05.5]} 67. Ra7+ {[%clk 0:00:27.8]}
67... Kg6 {[%clk 0:00:05.9]} 68. Kf4 {[%clk 0:00:27.6]} 68... Ne6+ {[%clk
0:00:05.9]} 69. Ke3 {[%clk 0:00:27.4]} 69... Ng7 {[%clk 0:00:05.6]} 70. Kf4
{[%clk 0:00:27.2]} 70... Nf5 {[%clk 0:00:05.6]} 71. Ra8 {[%clk 0:00:24.7]} 71...
Nh6 {[%clk 0:00:05.5]} 72. Ra5 {[%clk 0:00:24.1]} 72... Nf7 {[%clk 0:00:05.9]}
73. Rb5 {[%clk 0:00:23.6]} 73... Ne5 {[%clk 0:00:05.7]} 74. Ra5 {[%clk
0:00:23.3]} 74... Nd3+ {[%clk 0:00:05.3]} 75. Ke3 {[%clk 0:00:22.2]} 75... Ne5
{[%clk 0:00:05.2]} 76. Kf4 {[%clk 0:00:22.2]} 76... Nf7 {[%clk 0:00:04.9]} 77.
Rb5 {[%clk 0:00:21.2]} 77... Nd6 {[%clk 0:00:04.4]} 78. Ra5 {[%clk 0:00:20.9]}
78... Ne8 {[%clk 0:00:04.4]} 79. Ra6 {[%clk 0:00:20.8]} 79... Ng7 {[%clk
0:00:03.6]} 80. Rb6 {[%clk 0:00:20.5]} 80... Ne6+ {[%clk 0:00:03.5]} 81. Ke3
{[%clk 0:00:20.4]} 81... Ng7 {[%clk 0:00:03.9]} 82. Ra6 {[%clk 0:00:20.3]} 82...
Ne6 {[%clk 0:00:03.4]} 83. Rb6 {[%clk 0:00:19.5]} 83... Kf5 {[%clk 0:00:03.7]}
84. Rb5+ {[%clk 0:00:19.2]} 84... Kg6 {[%clk 0:00:04.1]} 85. Rb6 {[%clk
0:00:18.9]} 1/2-1/2